fUST/lending_fUST_20250615
["ID","MTS","AMOUNT","RATE_DAILY","PERIOD"]
[365837808,1749952052494,-481.03588951,0.00021736,2]
[365837822,1749952146139,-2587.97042689,0.00019012,2]
[365837823,1749952146166,-156.64754457,0.00019012,2]
[365837824,1749952147214,4387.87312886,0.00024996,60]
[365837943,1749952232319,-209.19843507,0.00019938,2]
[365837945,1749952232329,-700.0,0.00020058,2]
[365837947,1749952232338,-168.0,0.00020306,2]
[365837950,1749952232348,-700.0,0.00021154,2]
[365837952,1749952232359,-1731.65,0.00021735,2]
[365837954,1749952232368,-1526.40564139,0.00021736,2]
[365837956,1749952232377,-385.65157742,0.000218,2]
[365837958,1749952232386,-207.4,0.00021822,2]
[365837960,1749952232396,-300.0,0.00021834,2]
[365837962,1749952232405,-300.0,0.00021835,2]
[365837964,1749952232414,-206.7794484,0.00021835,2]
[365837966,1749952232424,-2752.33759938,0.00021835,2]
[365837969,1749952232436,-2247.66240062,0.00021835,2]
[365837971,1749952232446,-16000.0,0.00021835,2]
[365837973,1749952232455,-419.31842034,0.00021835,2]
[365837975,1749952232465,-8967.5307223,0.00021848,2]
[365837977,1749952232475,-1729.57569719,0.000219,6]
[365837980,1749952232484,-128366.5677331,0.00021916,2]
[365837982,1749952232495,-172739.9228769,0.00021916,2]
[365837984,1749952232505,-367.98910734,0.00021917,4]
[365837986,1749952232514,-460.0,0.00021917,4]
[365837988,1749952232524,-169.86336436,0.00021917,4]
[365837990,1749952232534,-464.66251,0.00021917,4]
[365837992,1749952232542,-472.74645096,0.00021917,4]
[365837994,1749952232552,-460.0,0.00021917,4]
[365837996,1749952232561,-460.0,0.00021917,4]
[365837998,1749952232571,-739.32,0.00021917,4]
[365838000,1749952232580,-460.0,0.00021917,4]
[365838002,1749952232589,-326.84025157,0.00021917,4]
[365838004,1749952232598,-500.0,0.00021917,4]
[365838006,1749952232607,-500.0,0.00021917,4]
[365838008,1749952232617,-506.46,0.00021917,4]
[365838010,1749952232626,-304.64415804,0.00021917,4]
[365838012,1749952232636,-467.53619265,0.00021917,4]
[365838014,1749952232646,-458.17620881,0.00021917,4]
[365838016,1749952232655,-477.45233639,0.00021917,4]
[365838018,1749952232665,-460.0,0.00021917,4]
[365838020,1749952232675,-489.59,0.00021917,4]
[365838022,1749952232684,-460.0,0.00021917,4]
[365838024,1749952232694,-2461.49,0.00021917,4]
[365838026,1749952232703,-460.0,0.00021917,4]
[365838028,1749952232713,-482.54,0.00021917,4]
[365838030,1749952232723,-707.99,0.00021917,2]
[365838032,1749952232732,-460.0,0.00021917,4]
[365838034,1749952232742,-468.42560883,0.00021917,4]
[365838036,1749952232751,-2655.3,0.00021917,4]
[365838038,1749952232761,-653.87,0.00021917,4]
[365838040,1749952232771,-460.0,0.00021917,4]
[365838041,1749952232781,-460.0,0.00021917,4]
[365838043,1749952232790,-691.4,0.00021917,4]
[365838045,1749952232800,-1906.33,0.00021917,4]
[365838047,1749952232809,-483.97232898,0.00021917,4]
[365838049,1749952232819,-488.03,0.00021917,4]
[365838051,1749952232829,-473.1125436,0.00021917,4]
[365838053,1749952232839,-460.0,0.00021917,4]
[365838055,1749952232848,-1900.32,0.00021917,4]
[365838057,1749952232859,-460.0,0.00021917,4]
[365838059,1749952232868,-292.17574361,0.00021917,4]
[365838061,1749952232877,-460.0,0.00021917,4]
[365838063,1749952232887,-545.49,0.00021917,4]
[365838065,1749952232896,-1092.77,0.00021917,4]
[365838067,1749952232906,-928.17,0.00021917,4]
[365838069,1749952232915,-899.96,0.00021917,4]
[365838071,1749952232924,-460.0,0.00021917,4]
[365838073,1749952232935,-460.0,0.00021917,4]
[365838075,1749952232945,-2099.94,0.00021917,4]
[365838077,1749952232957,-460.0,0.00021917,4]
[365838079,1749952232967,-460.0,0.00021917,4]
[365838081,1749952232976,-460.0,0.00021917,4]
[365838083,1749952232987,-460.0,0.00021917,4]
[365838085,1749952232998,-460.0,0.00021917,4]
[365838087,1749952233007,-460.0,0.00021917,4]
[365838089,1749952233016,-393.83288589,0.00021917,4]
[365838091,1749952233029,-591.18,0.00021917,4]
[365838093,1749952233040,-383.57517883,0.00021917,4]
[365838095,1749952233050,-460.0,0.00021917,4]
[365838097,1749952233059,-460.0,0.00021917,4]
[365838099,1749952233069,-782.18,0.00021917,4]
[365838101,1749952233079,-460.0,0.00021917,4]
[365838103,1749952233089,-529.14,0.00021917,4]
[365838105,1749952233099,-460.0,0.00021917,4]
[365838107,1749952233108,-460.0,0.00021917,4]
[365838109,1749952233119,-586.68,0.00021917,4]
[365838111,1749952233129,-954.55,0.00021917,4]
[365838113,1749952233138,-773.65,0.00021917,4]
[365838115,1749952233149,-1077.44,0.00021917,4]
[365838117,1749952233159,-460.0,0.00021917,4]
[365838119,1749952233170,-460.92176475,0.00021917,4]
[365838120,1749952233180,-460.0,0.00021917,4]
[365838122,1749952233190,-311.58446445,0.00021917,4]
[365838125,1749952233200,-584.78927691,0.00021917,4]
[365838127,1749952233210,-460.0,0.00021917,4]
[365838129,1749952233220,-595.73,0.00021917,4]
[365838130,1749952233230,-460.0,0.00021917,4]
[365838132,1749952233239,-236.4208842,0.00021917,4]
[365838133,1749952233249,-1707.23,0.00021917,4]
[365838134,1749952233259,-2373.7,0.00021917,4]
[365838135,1749952233269,-1136.77,0.00021917,4]
[365838136,1749952233279,-1814.81,0.00021917,4]
[365838137,1749952233288,-624.38,0.00021917,4]
[365838138,1749952233297,-460.0,0.00021917,4]
[365838139,1749952233307,-578.17,0.00021917,4]
[365838140,1749952233316,-160.0,0.00021938,3]
[365838141,1749952233325,-161.16389135,0.00021938,5]
[365838142,1749952233335,-1729.57569716,0.00022003,6]
[365838143,1749952233345,-500.0,0.00022037,4]
[365838144,1749952233355,-500.0,0.00022106,2]
[365838145,1749952233364,-500.0,0.00022106,2]
[365838146,1749952233373,-500.0,0.00022106,2]
[365838147,1749952233383,-247.15584015,0.00022106,2]
[365838148,1749952233393,-500.0,0.00022106,2]
[365838149,1749952233403,-500.0,0.00022106,2]
[365838150,1749952233412,-500.0,0.00022106,2]
[365838151,1749952233422,-505.04588079,0.00022106,2]
[365838152,1749952233433,-500.0,0.00022106,2]
[365838153,1749952233443,-500.0,0.00022106,2]
[365838154,1749952233452,-500.0,0.00022106,2]
[365838155,1749952233462,-1729.57569716,0.00022107,6]
[365838156,1749952233472,-6841.39431443,0.00022116,2]
[365838157,1749952233481,-168.0,0.00022155,2]
[365838158,1749952233491,-500.0,0.0002219,4]
[365838159,1749952233501,-185.95372427,0.0002219,4]
[365838160,1749952233510,-460.0,0.00022191,4]
[365838161,1749952233519,-460.0,0.00022191,4]
[365838162,1749952233528,-460.0,0.00022191,4]
[365838163,1749952233538,-739.32,0.00022191,4]
[365838164,1749952233547,-460.0,0.00022191,4]
[365838165,1749952233557,-506.46,0.00022191,4]
[365838166,1749952233567,-460.0,0.00022191,4]
[365838167,1749952233576,-489.59,0.00022191,4]
[365838168,1749952233586,-460.0,0.00022191,4]
[365838169,1749952233595,-2461.49,0.00022191,4]
[365838170,1749952233605,-460.0,0.00022191,4]
[365838171,1749952233614,-482.54,0.00022191,4]
[365838172,1749952233624,-707.99,0.00022191,2]
[365838173,1749952233634,-460.0,0.00022191,4]
[365838174,1749952233643,-2655.3,0.00022191,4]
[365838175,1749952233652,-653.87,0.00022191,4]
[365838176,1749952233662,-460.0,0.00022191,4]
[365838177,1749952233671,-460.0,0.00022191,4]
[365838178,1749952233680,-691.4,0.00022191,4]
[365838179,1749952233689,-1906.33,0.00022191,4]
[365838180,1749952233699,-488.03,0.00022191,4]
[365838181,1749952233708,-460.0,0.00022191,4]
[365838182,1749952233717,-1900.32,0.00022191,4]
[365838183,1749952233726,-460.0,0.00022191,4]
[365838184,1749952233735,-520.0,0.00022191,4]
[365838185,1749952233745,-545.49,0.00022191,4]
[365838186,1749952233754,-1092.77,0.00022191,4]
[365838187,1749952233764,-928.17,0.00022191,4]
[365838188,1749952233773,-899.96,0.00022191,4]
[365838189,1749952233783,-460.0,0.00022191,4]
[365838190,1749952233792,-460.0,0.00022191,4]
[365838191,1749952233801,-2099.94,0.00022191,4]
[365838192,1749952233810,-460.0,0.00022191,4]
[365838193,1749952233820,-485.92161592,0.00022191,4]
[365838194,1749952233830,-460.0,0.00022191,4]
[365838195,1749952233840,-460.0,0.00022191,4]
[365838196,1749952233850,-460.0,0.00022191,4]
[365838197,1749952233860,-591.18,0.00022191,4]
[365838198,1749952233870,-460.0,0.00022191,4]
[365838199,1749952233880,-460.0,0.00022191,4]
[365838200,1749952233890,-782.18,0.00022191,4]
[365838201,1749952233900,-460.0,0.00022191,4]
[365838202,1749952233910,-529.14,0.00022191,4]
[365838203,1749952233921,-460.0,0.00022191,4]
[365838204,1749952233930,-460.0,0.00022191,4]
[365838205,1749952233940,-586.68,0.00022191,4]
[365838206,1749952233952,-954.55,0.00022191,4]
[365838207,1749952233961,-773.65,0.00022191,4]
[365838208,1749952233971,-1077.44,0.00022191,4]
[365838209,1749952233981,-460.0,0.00022191,4]
[365838210,1749952233991,-460.0,0.00022191,4]
[365838211,1749952234000,-460.0,0.00022191,4]
[365838212,1749952234010,-595.73,0.00022191,4]
[365838213,1749952234020,-460.0,0.00022191,4]
[365838214,1749952234030,-1707.23,0.00022191,4]
[365838215,1749952234040,-2373.7,0.00022191,4]
[365838216,1749952234050,-1136.77,0.00022191,4]
[365838217,1749952234060,-1814.81,0.00022191,4]
[365838218,1749952234071,-624.38,0.00022191,4]
[365838219,1749952234082,-460.0,0.00022191,4]
[365838220,1749952234091,-578.17,0.00022191,4]
[365838221,1749952234246,-464.10445723,0.000222,2]
[365838222,1749952234256,-503.51076075,0.0002221,2]
[365838223,1749952234266,-513.58507744,0.0002221,2]
[365838224,1749952234275,-500.0,0.0002221,2]
[365838225,1749952234285,-500.0,0.0002221,2]
[365838226,1749952234295,-502.83146027,0.0002221,2]
[365838227,1749952234304,-1729.57569716,0.0002221,6]
[365838228,1749952234314,-385.65157738,0.00022242,2]
[365838229,1749952234323,-700.0,0.0002225,2]
[365838230,1749952234333,-168.0,0.00022273,2]
[365838231,1749952234343,-575.89464501,0.00022288,2]
[365838232,1749952234352,-1729.57569716,0.00022314,7]
[365838233,1749952234362,-504.08712645,0.00022346,2]
[365838234,1749952234371,-718.37786336,0.00022365,2]
[365838235,1749952234381,-449.86,0.00022373,3]
[365838236,1749952234391,-5000.0,0.00022383,2]
[365838237,1749952234400,-1784.52130898,0.00022415,2]
[365838238,1749952234410,-168.0,0.00022416,2]
[365838239,1749952234419,-1729.57569716,0.00022417,7]
[365838240,1749952234431,-160.0,0.00022436,2]
[365838241,1749952234440,-160.0,0.00022436,2]
[365838242,1749952234449,-315.3423008,0.00022436,2]
[365838243,1749952234459,-160.0,0.00022436,2]
[365838244,1749952234469,-160.0,0.00022436,2]
[365838245,1749952234479,-160.0,0.00022436,2]
[365838246,1749952234488,-160.0,0.00022436,2]
[365838247,1749952234498,-12533.30537164,0.00022436,2]
[365838248,1749952234507,-213.28201367,0.00022436,2]
[365838249,1749952234517,-160.0,0.00022436,2]
[365838250,1749952234527,-66.48910079,0.00022436,2]
[365838251,1749952234542,-93.51089921,0.00022436,2]
[365838252,1749952234551,-835.41710878,0.00022436,2]
[365838253,1749952234560,-229.82479369,0.00022436,2]
[365838254,1749952234569,-160.0,0.00022436,2]
[365838255,1749952234579,-845.10789306,0.00022436,2]
[365838256,1749952234588,-424.40141186,0.00022436,2]
[365838257,1749952234597,-500.0,0.00022443,2]
[365838258,1749952234607,-168.0,0.00022449,2]
[365838259,1749952234616,-151.0,0.00022465,7]
[365838260,1749952234625,-151.0,0.00022465,7]
[365838261,1749952234635,-749.634344,0.00022465,7]
[365838262,1749952234644,-749.634344,0.00022465,7]
[365838263,1749952234653,-151.0,0.00022465,7]
[365838264,1749952234662,-235.865546,0.00022465,7]
[365838265,1749952234672,-235.865546,0.00022465,7]
[365838266,1749952234682,-300.79249083,0.00022465,4]
[365838304,1749952238393,-510.68097431,0.0002219,2]
[365838305,1749952238403,-159.20750917,0.00022465,4]
[365838306,1749952238413,-65.36999301,0.00022465,7]
[365838576,1749952243266,-2256.36,0.00021917,4]
[365838577,1749952243276,-599.38,0.00021917,4]
[365838578,1749952243286,-599.38,0.00022191,4]
[365838579,1749952243296,-2256.36,0.00022191,4]
[365838580,1749952243306,-85.63000699,0.00022465,7]
[365838581,1749952243315,-151.923522,0.00022465,7]
[365838582,1749952243325,-460.0,0.00022465,4]
[365838583,1749952243335,-460.0,0.00022465,4]
[365838584,1749952243345,-739.32,0.00022465,4]
[365838585,1749952243353,-460.0,0.00022465,4]
[365838586,1749952243363,-506.46,0.00022465,4]
[365838587,1749952243372,-460.0,0.00022465,4]
[365838588,1749952243382,-489.59,0.00022465,4]
[365838589,1749952243391,-460.0,0.00022465,4]
[365838590,1749952243400,-460.0,0.00022465,4]
[365838591,1749952243410,-482.54,0.00022465,4]
[365838592,1749952243419,-707.99,0.00022465,2]
[365838594,1749952243429,-460.0,0.00022465,4]
[365838595,1749952243439,-2655.3,0.00022465,4]
[365838596,1749952243448,-460.0,0.00022465,4]
[365838597,1749952243458,-460.0,0.00022465,4]
[365838598,1749952243468,-691.4,0.00022465,4]
[365838599,1749952243477,-1906.33,0.00022465,4]
[365838600,1749952243488,-488.03,0.00022465,4]
[365838601,1749952243496,-460.0,0.00022465,4]
[365838602,1749952243506,-1900.32,0.00022465,4]
[365838603,1749952243515,-460.0,0.00022465,4]
[365838605,1749952243524,-545.49,0.00022465,4]
[365838606,1749952243533,-1092.77,0.00022465,4]
[365838607,1749952243542,-928.17,0.00022465,4]
[365838608,1749952243551,-899.96,0.00022465,4]
[365838609,1749952243560,-460.0,0.00022465,4]
[365838610,1749952243569,-460.0,0.00022465,4]
[365838611,1749952243578,-2099.94,0.00022465,4]
[365838612,1749952243587,-460.0,0.00022465,4]
[365838613,1749952243597,-460.0,0.00022465,4]
[365838614,1749952243606,-460.0,0.00022465,4]
[365838615,1749952243615,-460.0,0.00022465,4]
[365838616,1749952243625,-591.18,0.00022465,4]
[365838617,1749952243634,-460.0,0.00022465,4]
[365838618,1749952243644,-460.0,0.00022465,4]
[365838619,1749952243653,-782.18,0.00022465,4]
[365838620,1749952243663,-460.0,0.00022465,4]
[365838621,1749952243671,-529.14,0.00022465,4]
[365838622,1749952243680,-460.0,0.00022465,4]
[365838623,1749952243690,-460.0,0.00022465,4]
[365838624,1749952243699,-586.68,0.00022465,4]
[365838625,1749952243709,-954.55,0.00022465,4]
[365838626,1749952243718,-773.65,0.00022465,4]
[365838627,1749952243727,-1077.44,0.00022465,4]
[365838628,1749952243736,-350.71010483,0.00022465,4]
[365838629,1749952243745,-460.0,0.00022465,4]
[365838630,1749952243754,-460.0,0.00022465,4]
[365838631,1749952243763,-595.73,0.00022465,4]
[365838632,1749952243772,-460.0,0.00022465,4]
[365838633,1749952243782,-1707.23,0.00022465,4]
[365838634,1749952243791,-2373.7,0.00022465,4]
[365838635,1749952243800,-1136.77,0.00022465,4]
[365838636,1749952243809,-1814.81,0.00022465,4]
[365838637,1749952243819,-624.38,0.00022465,4]
[365838638,1749952243829,-460.0,0.00022465,4]
[365838639,1749952243839,-578.17,0.00022465,4]
[365838640,1749952243848,-599.38,0.00022465,4]
[365838642,1749952243857,-2256.36,0.00022465,4]
[365838644,1749952243866,-500.0,0.00022466,2]
[365838646,1749952243875,-500.0,0.00022466,2]
[365838648,1749952243885,-460.68766419,0.00022466,2]
[365838650,1749952243894,-500.0,0.00022466,2]
[365838651,1749952243903,-500.0,0.00022466,2]
[365838652,1749952243912,-500.0,0.00022466,2]
[365838653,1749952243921,-500.0,0.00022466,2]
[365838654,1749952243931,-500.0,0.00022466,2]
[365838655,1749952243940,-500.0,0.00022466,2]
[365838656,1749952243950,-500.0,0.00022466,2]
[365838657,1749952243962,-500.0,0.00022466,2]
[365838658,1749952243971,-500.0,0.00022466,2]
[365838659,1749952243980,-507.06639443,0.00022473,2]
[365838660,1749952243990,-500.63622187,0.00022473,2]
[365838661,1749952243999,-502.42715705,0.00022473,2]
[365838662,1749952244009,-500.0,0.00022473,2]
[365838664,1749952244018,-500.0,0.00022473,2]
[365838666,1749952244027,-749.634344,0.00022497,7]
[365838669,1749952244037,-749.634344,0.00022497,7]
[365838672,1749952244047,-151.0,0.00022497,7]
[365838674,1749952244056,-173.0090881,0.00022499,2]
[365838676,1749952244065,-500.0,0.00022499,2]
[365838678,1749952244074,-500.0,0.00022499,2]
[365838680,1749952244083,-503.53211655,0.00022499,2]
[365838682,1749952244093,-500.0,0.00022499,2]
[365838684,1749952244102,-500.0,0.00022499,2]
[365838686,1749952244111,-500.0,0.00022499,2]
[365838688,1749952244120,-500.0,0.00022499,2]
[365838690,1749952244130,-151.0,0.000225,7]
[365838692,1749952244140,-151.0,0.000225,7]
[365838694,1749952244149,-749.634344,0.000225,7]
[365838696,1749952244158,-749.634344,0.000225,7]
[365838698,1749952244167,-151.0,0.000225,7]
[365838699,1749952244176,-235.865546,0.000225,7]
[365838701,1749952244186,-235.865546,0.000225,7]
[365838703,1749952244195,-151.0,0.000225,7]
[365838704,1749952244204,-845.10789306,0.000225,7]
[365838705,1749952244213,-99321.36,0.000225,7]
[365838707,1749952244222,-315.3423008,0.000225,7]
[365838709,1749952244232,-12533.30537164,0.000225,7]
[365838710,1749952244242,-320.3051238,0.00022521,2]
[365838711,1749952244251,-158.63313,0.00022521,2]
[365838712,1749952244261,-1729.57569716,0.00022521,7]
[365838714,1749952244271,-1615.781164,0.0002254,3]
[365838716,1749952244280,-171.84232739,0.00022548,2]
[365838718,1749952244290,-718.37786335,0.0002258,2]
[365838720,1749952244299,-1729.57569716,0.00022624,7]
[365838722,1749952244309,-8314.87586184,0.00022639,2]
[365838724,1749952244318,-168.0,0.00022641,2]
[365838726,1749952244327,-385.65157738,0.00022684,2]
[365838728,1749952244336,-168.0,0.00022701,2]
[365838730,1749952244346,-1729.57569716,0.00022728,7]
[365838732,1749952244355,-151.0,0.00022739,7]
[365838734,1749952244365,-256.432969,0.00022739,7]
[365838736,1749952244374,-749.634344,0.00022739,7]
[365838738,1749952244383,-749.634344,0.00022739,7]
[365838740,1749952244392,-154.912986,0.00022739,7]
[365838742,1749952244402,-235.865546,0.00022739,7]
[365838744,1749952244411,-235.865546,0.00022739,7]
[365838746,1749952244421,-169.97181264,0.00022739,4]
[365838748,1749952244431,-151.0,0.00022739,7]
[365838750,1749952244440,-460.0,0.00022739,4]
[365838752,1749952244449,-460.0,0.00022739,4]
[365838754,1749952244458,-739.32,0.00022739,4]
[365838756,1749952244468,-460.0,0.00022739,4]
[365838758,1749952244477,-506.46,0.00022739,4]
[365838760,1749952244487,-460.0,0.00022739,4]
[365838762,1749952244496,-489.59,0.00022739,4]
[365838764,1749952244506,-460.0,0.00022739,4]
[365838766,1749952244515,-460.0,0.00022739,4]
[365838768,1749952244525,-482.54,0.00022739,4]
[365838770,1749952244534,-707.99,0.00022739,2]
[365838772,1749952244543,-460.0,0.00022739,4]
[365838774,1749952244552,-2655.3,0.00022739,4]
[365838776,1749952244561,-460.0,0.00022739,4]
[365838778,1749952244570,-460.0,0.00022739,4]
[365838780,1749952244580,-691.4,0.00022739,4]
[365838782,1749952244589,-1906.33,0.00022739,4]
[365838784,1749952244599,-488.03,0.00022739,4]
[365838786,1749952244608,-151.0,0.00022739,7]
[365838788,1749952244617,-151.0,0.00022739,7]
[365838790,1749952244627,-460.0,0.00022739,4]
[365838792,1749952244636,-1900.32,0.00022739,4]
[365838794,1749952244645,-460.0,0.00022739,4]
[365838796,1749952244654,-151.0,0.00022739,7]
[365838798,1749952244664,-545.49,0.00022739,4]
[365838813,1749952244803,-1092.77,0.00022739,4]
[365838815,1749952244814,-928.17,0.00022739,4]
[365838817,1749952244823,-899.96,0.00022739,4]
[365838819,1749952244833,-460.0,0.00022739,4]
[365838821,1749952244842,-460.0,0.00022739,4]
[365838823,1749952244851,-2099.94,0.00022739,4]
[365838825,1749952244861,-460.0,0.00022739,4]
[365838827,1749952244870,-460.0,0.00022739,4]
[365838829,1749952244880,-460.0,0.00022739,4]
[365838831,1749952244890,-460.0,0.00022739,4]
[365838833,1749952244900,-591.18,0.00022739,4]
[365838835,1749952244909,-460.0,0.00022739,4]
[365838837,1749952244920,-151.0,0.00022739,7]
[365838839,1749952244929,-460.0,0.00022739,4]
[365838841,1749952244939,-782.18,0.00022739,4]
[365838843,1749952244948,-460.0,0.00022739,4]
[365838845,1749952244963,-529.14,0.00022739,4]
[365838847,1749952244973,-460.0,0.00022739,4]
[365838850,1749952244983,-460.0,0.00022739,4]
[365838852,1749952244992,-586.68,0.00022739,4]
[365838854,1749952245003,-954.55,0.00022739,4]
[365838856,1749952245013,-773.65,0.00022739,4]
[365838858,1749952245023,-1077.44,0.00022739,4]
[365838860,1749952245033,-460.0,0.00022739,4]
[365838861,1749952245043,-460.0,0.00022739,4]
[365838863,1749952245052,-595.73,0.00022739,4]
[365838865,1749952245061,-561.58644411,0.00022739,4]
[365838868,1749952245071,-1707.23,0.00022739,4]
[365838870,1749952245081,-2373.7,0.00022739,4]
[365838872,1749952245090,-1136.77,0.00022739,4]
[365838874,1749952245100,-1814.81,0.00022739,4]
[365838876,1749952245110,-624.38,0.00022739,4]
[365838878,1749952245119,-1197.473305,0.00022739,7]
[365838880,1749952245128,-460.0,0.00022739,4]
[365838882,1749952245137,-578.17,0.00022739,4]
[365838884,1749952245147,-1197.473305,0.00022739,7]
[365838886,1749952245156,-599.38,0.00022739,4]
[365838888,1749952245166,-2256.36,0.00022739,4]
[365838890,1749952245175,-504.21200308,0.00022758,2]
[365838892,1749952245184,-1000.0,0.00022758,2]
[365838894,1749952245194,-718.37786335,0.00022796,2]
[365838896,1749952245203,-1729.57569716,0.00022831,8]
[365838898,1749952245212,-168.0,0.00022839,2]
[365838900,1749952245222,-1746.0,0.00022844,3]
[365838902,1749952245231,-166.0,0.00022844,3]
[365838904,1749952245240,-1776.59966717,0.00022844,3]
[365838906,1749952245249,-166.0,0.00022844,3]
[365838908,1749952245259,-166.0,0.00022844,3]
[365838910,1749952245268,-166.0,0.00022844,3]
[365838912,1749952245277,-166.0,0.00022844,3]
[365838914,1749952245286,-166.0,0.00022844,3]
[365838916,1749952245296,-166.0,0.00022844,3]
[365838918,1749952245305,-166.0,0.00022844,3]
[365838920,1749952245315,-172.0,0.00022844,3]
[365838922,1749952245324,-317.0,0.00022844,3]
[365838924,1749952245334,-317.0,0.00022844,3]
[365838926,1749952245343,-317.0,0.00022844,3]
[365838928,1749952245352,-345.04212719,0.00022844,3]
[365838930,1749952245361,-355.56440823,0.00022845,3]
[365838932,1749952245371,-171.84232739,0.00022849,2]
[365838934,1749952245380,-151.0,0.00022876,7]
[365838936,1749952245389,-151.0,0.00022876,7]
[365838938,1749952245398,-151.0,0.00022876,7]
[365838940,1749952245408,-151.0,0.00022876,7]
[365838942,1749952245417,-286.629074,0.00022876,7]
[365838944,1749952245427,-161.206025,0.00022876,7]
[365838946,1749952245437,-240.409685,0.00022876,7]
[365838948,1749952245446,-240.409685,0.00022876,7]
[365838950,1749952245456,-301.11816283,0.00022894,2]
[365838952,1749952245466,-611.0,0.00022921,2]
[365838954,1749952245475,-5000.0,0.00022931,2]
[365838956,1749952245484,-1729.57569716,0.00022934,8]
[365838958,1749952245494,-222.825433,0.00022945,7]
[365838960,1749952245503,-166.0,0.00022945,3]
[365838962,1749952245512,-166.0,0.00022945,3]
[365838964,1749952245522,-166.0,0.00022945,3]
[365838966,1749952245531,-166.0,0.00022945,3]
[365838968,1749952245541,-166.0,0.00022945,3]
[365838970,1749952245550,-166.0,0.00022945,3]
[365838972,1749952245560,-203.87198463,0.00022945,3]
[365838974,1749952245569,-1746.0,0.00022945,3]
[365838976,1749952245578,-1746.0,0.00022945,3]
[365838978,1749952245586,-1746.0,0.00022945,3]
[365838980,1749952245596,-1746.0,0.00022945,3]
[365838982,1749952245605,-541.00014651,0.00022945,3]
[365838984,1749952245614,-317.0,0.00022945,3]
[365838986,1749952245624,-213.28201367,0.00022945,3]
[365838988,1749952245633,-845.10789306,0.00022945,3]
[365838990,1749952245642,-315.3423008,0.00022945,3]
[365838992,1749952245652,-12533.30537164,0.00022945,3]
[365838994,1749952245661,-611.0,0.00022957,2]
[365838996,1749952245671,-800.0,0.00022966,2]
[365838998,1749952245680,-500.0,0.00022973,2]
[365839000,1749952245689,-500.45833609,0.00022973,2]
[365839003,1749952245699,-355.27840944,0.00022973,2]
[365839005,1749952245708,-500.0,0.00022973,2]
[365839009,1749952245717,-500.0,0.00022973,2]
[365839013,1749952245726,-500.97063534,0.00022973,2]
[365839016,1749952245735,-500.0,0.00022973,2]
[365839019,1749952245744,-501.72003116,0.00022973,2]
[365839022,1749952245753,-500.0,0.00022973,2]
[365839025,1749952245762,-500.0,0.00022973,2]
[365839028,1749952245772,-500.0,0.00022973,2]
[365839031,1749952245781,-376.63353156,0.00022973,2]
[365839035,1749952245790,-500.0,0.00022973,2]
[365839039,1749952245800,-500.0,0.00022973,2]
[365839043,1749952245810,-500.0,0.00022973,2]
[365839046,1749952245819,-99310.62550229,0.0002299,2]
[365840859,1749952308889,168.587066,0.00013699,2]
[365840973,1749953226136,-284.8216315,0.00019829,2]
[365840974,1749953226160,-600.0,0.00020058,2]
[365840975,1749953226184,-168.587066,0.00020187,2]
[365840976,1749953226208,-391.0,0.00020593,2]
[365840977,1749953226232,-300.0,0.00020593,2]